[Event "Late-Titled-Tuesday-Blitz-September-19-2023"]
[Site "Chess.com"]
[Date "2023.09.19"]
[Round "8"]
[White "sergoy"]
[Black "Firouzja2003"]
[Result "1/2-1/2"]
[WhiteElo "2918"]
[BlackElo "3070"]
[TimeControl "180+1"]
[EndTime "15:29:49 PDT"]
[Termination "Game drawn by 50-move rule"]

1. d4 {[%clk 0:02:46.1]} 1... Nf6 {[%clk 0:02:59.9]} 2. c4 {[%clk 0:02:46.1]}
2... g6 {[%clk 0:03:00.4]} 3. Nc3 {[%clk 0:02:44.4]} 3... Bg7 {[%clk 0:03:01]}
4. e4 {[%clk 0:02:44.9]} 4... d6 {[%clk 0:03:01.5]} 5. Nf3 {[%clk 0:02:45.5]}
5... O-O {[%clk 0:03:01.7]} 6. Be2 {[%clk 0:02:46.2]} 6... Na6 {[%clk
0:03:02.1]} 7. O-O {[%clk 0:02:45.8]} 7... e5 {[%clk 0:03:02.4]} 8. Be3 {[%clk
0:02:46.5]} 8... Qe7 {[%clk 0:03:01.7]} 9. d5 {[%clk 0:02:45.5]} 9... Ng4 {[%clk
0:03:01.3]} 10. Bg5 {[%clk 0:02:45.8]} 10... f6 {[%clk 0:03:01.8]} 11. Bh4
{[%clk 0:02:46.2]} 11... g5 {[%clk 0:03:02.4]} 12. Bg3 {[%clk 0:02:46.4]} 12...
f5 {[%clk 0:03:02.5]} 13. exf5 {[%clk 0:02:44]} 13... Bxf5 {[%clk 0:03:00.7]}
14. Nd2 {[%clk 0:02:36]} 14... Nf6 {[%clk 0:02:57.7]} 15. a3 {[%clk 0:02:30.9]}
15... Nc5 {[%clk 0:02:36.9]} 16. b4 {[%clk 0:02:24.4]} 16... Nd3 {[%clk
0:02:37.2]} 17. Nf3 {[%clk 0:01:35.2]} 17... e4 {[%clk 0:01:28.3]} 18. Nxg5
{[%clk 0:01:34.2]} 18... Nh5 {[%clk 0:01:05.8]} 19. Ngxe4 {[%clk 0:01:02.6]}
19... Bxe4 {[%clk 0:00:43.6]} 20. Nxe4 {[%clk 0:00:40.3]} 20... Nxg3 {[%clk
0:00:28]} 21. Nxg3 {[%clk 0:00:35.4]} 21... Nxf2 {[%clk 0:00:26.6]} 22. Rxf2
{[%clk 0:00:13.3]} 22... Rxf2 {[%clk 0:00:25.8]} 23. Kxf2 {[%clk 0:00:14]} 23...
Qf6+ {[%clk 0:00:25.7]} 24. Bf3 {[%clk 0:00:13.7]} 24... Qxa1 {[%clk 0:00:25.8]}
25. Qxa1 {[%clk 0:00:14]} 25... Bxa1 {[%clk 0:00:26.5]} 26. Ne4 {[%clk
0:00:12.5]} 26... a5 {[%clk 0:00:18.3]} 27. c5 {[%clk 0:00:04]} 27... axb4
{[%clk 0:00:14.7]} 28. axb4 {[%clk 0:00:04]} 28... Be5 {[%clk 0:00:15.2]} 29.
cxd6 {[%clk 0:00:01.7]} 29... cxd6 {[%clk 0:00:13.3]} 30. b5 {[%clk 0:00:02.3]}
30... Ra2+ {[%clk 0:00:10.7]} 31. Be2 {[%clk 0:00:02.7]} 31... Bxh2 {[%clk
0:00:08]} 32. g3 {[%clk 0:00:03.1]} 32... Kf8 {[%clk 0:00:06.2]} 33. Nxd6 {[%clk
0:00:01.9]} 33... Bxg3+ {[%clk 0:00:04.6]} 34. Kxg3 {[%clk 0:00:02.8]} 34...
Rxe2 {[%clk 0:00:04.8]} 35. Nxb7 {[%clk 0:00:03.4]} 35... Rb2 {[%clk 0:00:03.5]}
36. Nd6 {[%clk 0:00:03.1]} 36... Ke7 {[%clk 0:00:03.7]} 37. Nf5+ {[%clk
0:00:03.4]} 37... Kf6 {[%clk 0:00:04]} 38. Nd6 {[%clk 0:00:02]} 38... Rb3+
{[%clk 0:00:02.1]} 39. Kf4 {[%clk 0:00:01.7]} 39... Rb4+ {[%clk 0:00:01.9]} 40.
Ne4+ {[%clk 0:00:02.5]} 40... Ke7 {[%clk 0:00:02]} 41. Ke5 {[%clk 0:00:02.1]}
41... Rxb5 {[%clk 0:00:02.5]} 42. Nf6 {[%clk 0:00:02.5]} 42... Rb1 {[%clk
0:00:01.7]} 43. Nxh7 {[%clk 0:00:02.4]} 43... Re1+ {[%clk 0:00:01.8]} 44. Kf4
{[%clk 0:00:02]} 44... Kd6 {[%clk 0:00:01.9]} 45. Nf6 {[%clk 0:00:02.7]} 45...
Rf1+ {[%clk 0:00:02.4]} 46. Kg5 {[%clk 0:00:03.3]} 46... Ke5 {[%clk 0:00:02.5]}
47. Ng4+ {[%clk 0:00:03.9]} 47... Kd6 {[%clk 0:00:03.2]} 48. Nf6 {[%clk
0:00:04.1]} 48... Rf3 {[%clk 0:00:02.8]} 49. Ng4 {[%clk 0:00:03.9]} 49... Kxd5
{[%clk 0:00:02.8]} 50. Nf6+ {[%clk 0:00:04.5]} 50... Ke6 {[%clk 0:00:03.3]} 51.
Ng4 {[%clk 0:00:05]} 51... Ra3 {[%clk 0:00:03.5]} 52. Kf4 {[%clk 0:00:05.2]}
52... Ra4+ {[%clk 0:00:03.6]} 53. Kf3 {[%clk 0:00:05.8]} 53... Kf5 {[%clk
0:00:03.5]} 54. Ne3+ {[%clk 0:00:06.3]} 54... Kg5 {[%clk 0:00:04.4]} 55. Nd5
{[%clk 0:00:06.3]} 55... Rd4 {[%clk 0:00:04.6]} 56. Ne3 {[%clk 0:00:06.4]} 56...
Rf4+ {[%clk 0:00:05.2]} 57. Ke2 {[%clk 0:00:06.5]} 57... Rh4 {[%clk 0:00:05.7]}
58. Kd3 {[%clk 0:00:07.1]} 58... Kf6 {[%clk 0:00:04.7]} 59. Nd5+ {[%clk
0:00:06.2]} 59... Ke5 {[%clk 0:00:05.4]} 60. Ne3 {[%clk 0:00:07]} 60... Rh3
{[%clk 0:00:06]} 61. Kd2 {[%clk 0:00:05.7]} 61... Kd4 {[%clk 0:00:06.7]} 62.
Nf5+ {[%clk 0:00:05.9]} 62... Ke4 {[%clk 0:00:07]} 63. Nd6+ {[%clk 0:00:06.4]}
63... Ke5 {[%clk 0:00:06.9]} 64. Nb5 {[%clk 0:00:05.3]} 64... Rb3 {[%clk
0:00:03.4]} 65. Nc3 {[%clk 0:00:05.5]} 65... Kd4 {[%clk 0:00:03.9]} 66. Ne2+
{[%clk 0:00:06]} 66... Kc4 {[%clk 0:00:04.6]} 67. Nf4 {[%clk 0:00:05.9]} 67...
Ra3 {[%clk 0:00:04.8]} 68. Ke2 {[%clk 0:00:06.1]} 68... Kd4 {[%clk 0:00:04.9]}
69. Ne6+ {[%clk 0:00:06.4]} 69... Ke5 {[%clk 0:00:03.3]} 70. Nc5 {[%clk
0:00:06.2]} 70... Rc3 {[%clk 0:00:02.7]} 71. Nd3+ {[%clk 0:00:05]} 71... Kd4
{[%clk 0:00:03.3]} 72. Nf2 {[%clk 0:00:04.7]} 72... Re3+ {[%clk 0:00:03.8]} 73.
Kf1 {[%clk 0:00:05.3]} 73... Re8 {[%clk 0:00:02.8]} 74. Kg2 {[%clk 0:00:04.4]}
74... Ke3 {[%clk 0:00:03.3]} 75. Ng4+ {[%clk 0:00:04.5]} 75... Kf4 {[%clk
0:00:03.8]} 76. Nf2 {[%clk 0:00:02.3]} 76... Re2 {[%clk 0:00:04]} 77. Kf1 {[%clk
0:00:02.8]} 77... Kf3 {[%clk 0:00:04.4]} 78. Nd3 {[%clk 0:00:03.4]} 78... Rd2
{[%clk 0:00:04]} 79. Ne1+ {[%clk 0:00:03.5]} 79... Kg3 {[%clk 0:00:04.3]} 80.
Kg1 {[%clk 0:00:03.9]} 80... Rf2 {[%clk 0:00:04.7]} 81. Nd3 {[%clk 0:00:03.8]}
81... Rf8 {[%clk 0:00:04.1]} 82. Ne1 {[%clk 0:00:04]} 82... Rf7 {[%clk
0:00:04.6]} 83. Nd3 {[%clk 0:00:04.3]} 83... Kf3 {[%clk 0:00:05.2]} 84. Ne1+
{[%clk 0:00:03.5]} 84... Ke2 {[%clk 0:00:05.6]} 85. Ng2 {[%clk 0:00:03.9]} 85...
Rg7 {[%clk 0:00:06.3]} 86. Kh2 {[%clk 0:00:04.4]} 86... Kf2 {[%clk 0:00:03.8]}
87. Nh4 {[%clk 0:00:04.9]} 87... Rg3 {[%clk 0:00:04.1]} 88. Nf5 {[%clk 0:00:04]}
88... Ra3 {[%clk 0:00:04.2]} 89. Nh4 {[%clk 0:00:04.5]} 89... Rb3 {[%clk
0:00:04.7]} 90. Nf5 {[%clk 0:00:04.9]} 90... Kf3 {[%clk 0:00:03.9]} 91. Nh4+
{[%clk 0:00:04.3]} 91... Kg4 {[%clk 0:00:04.5]} 92. Ng2 {[%clk 0:00:04.9]} 92...
Rb2 {[%clk 0:00:05.1]} 93. Kg1 {[%clk 0:00:05.4]} 93... Kg3 {[%clk 0:00:03.8]}
94. Ne1 {[%clk 0:00:05.8]} 94... Rf2 {[%clk 0:00:03.9]} 95. Nd3 {[%clk
0:00:06.3]} 95... Rf3 {[%clk 0:00:04.1]} 96. Ne1 {[%clk 0:00:06.8]} 96... Rf5
{[%clk 0:00:04.3]} 97. Nd3 {[%clk 0:00:07.2]} 97... Kf3 {[%clk 0:00:02.4]} 98.
Ne1+ {[%clk 0:00:06.3]} 98... Ke3 {[%clk 0:00:02.9]} 99. Ng2+ {[%clk 0:00:06.5]}
99... Ke2 {[%clk 0:00:03.5]} 1/2-1/2

[Event "Late-Titled-Tuesday-Blitz-September-19-2023"]
[Site "Chess.com"]
[Date "2023.09.19"]
[Round "8"]
[White "santosalberto1987"]
[Black "Qvalda"]
[Result "0-1"]
[WhiteElo "2496"]
[BlackElo "2367"]
[TimeControl "180+1"]
[EndTime "15:30:00 PDT"]
[Termination "Qvalda won by resignation"]

1. e4 {[%clk 0:03:00.9]} 1... e6 {[%clk 0:02:59.8]} 2. d4 {[%clk 0:03:00.9]}
2... d5 {[%clk 0:03:00.7]} 3. Nc3 {[%clk 0:03:00.9]} 3... Be7 {[%clk 0:03:00.3]}
4. Nf3 {[%clk 0:02:57.8]} 4... Nf6 {[%clk 0:03:00]} 5. e5 {[%clk 0:02:57.4]}
5... Nfd7 {[%clk 0:03:00.3]} 6. Ne2 {[%clk 0:02:57.8]} 6... c5 {[%clk
0:02:59.4]} 7. c3 {[%clk 0:02:57.9]} 7... Qa5 {[%clk 0:03:00]} 8. a3 {[%clk
0:02:53.1]} 8... cxd4 {[%clk 0:02:58.7]} 9. b4 {[%clk 0:02:53.1]} 9... Qc7
{[%clk 0:02:54]} 10. cxd4 {[%clk 0:02:52.3]} 10... Nb6 {[%clk 0:02:51.7]} 11.
Be3 {[%clk 0:02:43.9]} 11... Nc4 {[%clk 0:02:51.2]} 12. Nf4 {[%clk 0:02:43.4]}
12... b5 {[%clk 0:02:44.2]} 13. Bd3 {[%clk 0:02:42.1]} 13... a5 {[%clk
0:02:43.7]} 14. O-O {[%clk 0:02:03.2]} 14... axb4 {[%clk 0:02:30.4]} 15. axb4
{[%clk 0:02:03.1]} 15... Rxa1 {[%clk 0:02:31.3]} 16. Qxa1 {[%clk 0:02:03.3]}
16... Bxb4 {[%clk 0:02:28.4]} 17. Rb1 {[%clk 0:02:01.4]} 17... Nc6 {[%clk
0:02:28.4]} 18. h4 {[%clk 0:01:48.6]} 18... O-O {[%clk 0:02:25.9]} 19. h5 {[%clk
0:01:18.6]} 19... Bb7 {[%clk 0:02:20.6]} 20. h6 {[%clk 0:01:15.6]} 20... g6
{[%clk 0:02:18.9]} 21. Qa2 {[%clk 0:01:15.3]} 21... Ra8 {[%clk 0:02:15]} 22. Qe2
{[%clk 0:01:15.4]} 22... Bf8 {[%clk 0:02:09.3]} 23. Nh3 {[%clk 0:01:06.5]} 23...
Nxe3 {[%clk 0:02:00.8]} 24. Qxe3 {[%clk 0:01:06.4]} 24... b4 {[%clk 0:01:59.3]}
25. Qf4 {[%clk 0:01:03.4]} 25... Ra3 {[%clk 0:01:47.6]} 26. Bf1 {[%clk
0:01:00.5]} 26... b3 {[%clk 0:01:47.2]} 27. Nd2 {[%clk 0:00:44.5]} 27... Na5
{[%clk 0:01:41.7]} 28. g4 {[%clk 0:00:33.6]} 28... Bc6 {[%clk 0:01:19.7]} 29. g5
{[%clk 0:00:29.2]} 29... Be8 {[%clk 0:01:14.9]} 30. Nf3 {[%clk 0:00:26.6]} 30...
Qc2 {[%clk 0:01:06]} 31. Rc1 {[%clk 0:00:24.1]} 31... Qf5 {[%clk 0:01:06]} 32.
Rc8 {[%clk 0:00:20.7]} 32... Qxf4 {[%clk 0:00:49.3]} 33. Nxf4 {[%clk 0:00:21.6]}
33... b2 {[%clk 0:00:49]} 34. Nd2 {[%clk 0:00:22]} 34... Ba4 {[%clk 0:00:36.9]}
35. Rb8 {[%clk 0:00:19.7]} 35... Nb3 {[%clk 0:00:35.2]} 36. Nb1 {[%clk
0:00:16.9]} 36... Ra1 {[%clk 0:00:30.1]} 37. Bd3 {[%clk 0:00:17.4]} 37... Nd2
{[%clk 0:00:09.8]} 38. Rxb2 {[%clk 0:00:17]} 38... Nxb1 {[%clk 0:00:09]} 39.
Rxb1 {[%clk 0:00:16.9]} 39... Rxb1+ {[%clk 0:00:08.5]} 40. Bxb1 {[%clk
0:00:17.8]} 40... Be7 {[%clk 0:00:09]} 41. Nh3 {[%clk 0:00:17.3]} 41... Bd1
{[%clk 0:00:09.1]} 42. f4 {[%clk 0:00:16.6]} 42... Bg4 {[%clk 0:00:09]} 43. Nf2
{[%clk 0:00:16.5]} 43... Bf5 {[%clk 0:00:09.2]} 44. Bxf5 {[%clk 0:00:16.3]}
44... gxf5 {[%clk 0:00:10]} 45. Kf1 {[%clk 0:00:16.8]} 45... Ba3 {[%clk
0:00:09.4]} 46. Ke2 {[%clk 0:00:17]} 46... Bb2 {[%clk 0:00:09.4]} 47. Kd3 {[%clk
0:00:16.4]} 47... Ba3 {[%clk 0:00:09.2]} 48. Ke3 {[%clk 0:00:16.5]} 48... Bb2
{[%clk 0:00:09.3]} 49. Nd3 {[%clk 0:00:16.5]} 49... Ba3 {[%clk 0:00:09.2]} 50.
Nc5 {[%clk 0:00:16.8]} 50... Bc1+ {[%clk 0:00:09]} 51. Kf3 {[%clk 0:00:16.9]}
51... Bb2 {[%clk 0:00:09.5]} 52. Ke3 {[%clk 0:00:15.8]} 52... Bc1+ {[%clk
0:00:09.5]} 53. Kf3 {[%clk 0:00:15]} 53... Bb2 {[%clk 0:00:10.4]} 54. Nd7 {[%clk
0:00:12.1]} 54... Bxd4 {[%clk 0:00:08.8]} 55. Nf6+ {[%clk 0:00:13]} 55... Kh8
{[%clk 0:00:08.9]} 56. Ke2 {[%clk 0:00:12.2]} 56... Bb2 {[%clk 0:00:08.5]} 57.
Kd3 {[%clk 0:00:12.3]} 57... Bc1 {[%clk 0:00:08.7]} 58. Nh5 {[%clk 0:00:10.1]}
58... Kg8 {[%clk 0:00:08.6]} 59. Kd4 {[%clk 0:00:10.3]} 59... Bb2+ {[%clk
0:00:08.4]} 60. Kc5 {[%clk 0:00:10.5]} 60... Bc1 {[%clk 0:00:08.2]} 61. Kd4
{[%clk 0:00:09.8]} 61... Ba3 {[%clk 0:00:07.7]} 62. Kc3 {[%clk 0:00:09.3]} 62...
Bc5 {[%clk 0:00:07.2]} 63. Kb3 {[%clk 0:00:09.1]} 63... Kh8 {[%clk 0:00:07]} 64.
Ka4 {[%clk 0:00:09]} 64... Bd4 {[%clk 0:00:06.5]} 65. Kb4 {[%clk 0:00:08.8]}
65... Be3 {[%clk 0:00:06.8]} 66. Kb5 {[%clk 0:00:08.6]} 66... Bd2 {[%clk
0:00:06.7]} 67. Kc5 {[%clk 0:00:08.4]} 67... Kg8 {[%clk 0:00:06.8]} 68. Kd6
{[%clk 0:00:08.3]} 68... Be3 {[%clk 0:00:06.6]} 69. Ke7 {[%clk 0:00:07]} 69...
d4 {[%clk 0:00:06.3]} 70. Nf6+ {[%clk 0:00:07.3]} 70... Kh8 {[%clk 0:00:06.6]}
71. Kxf7 {[%clk 0:00:07.5]} 71... d3 {[%clk 0:00:07.2]} 72. Ne8 {[%clk
0:00:04.5]} 72... d2 {[%clk 0:00:06.9]} 73. Nd6 {[%clk 0:00:03.6]} 73... d1=Q
{[%clk 0:00:06.9]} 74. Kf8 {[%clk 0:00:04.5]} 74... Bc5 {[%clk 0:00:05.9]} 75.
Ke7 {[%clk 0:00:04.2]} 75... Qd5 {[%clk 0:00:03.8]} 76. Kd7 {[%clk 0:00:03.6]}
76... Bxd6 {[%clk 0:00:03.7]} 77. exd6 {[%clk 0:00:04.3]} 77... e5 {[%clk
0:00:04.2]} 78. fxe5 {[%clk 0:00:04.4]} 78... Qxe5 {[%clk 0:00:05.1]} 79. Kc6
{[%clk 0:00:03.8]} 79... f4 {[%clk 0:00:05.4]} 80. d7 {[%clk 0:00:04]} 80...
Qe6+ {[%clk 0:00:05.7]} 81. Kc7 {[%clk 0:00:04.2]} 81... Qc4+ {[%clk 0:00:05.2]}
82. Kb8 {[%clk 0:00:04]} 82... Qb5+ {[%clk 0:00:05.1]} 83. Kc8 {[%clk
0:00:04.2]} 83... Qc6+ {[%clk 0:00:05.1]} 84. Kd8 {[%clk 0:00:04.8]} 84... Kg8
{[%clk 0:00:05.4]} 85. Ke7 {[%clk 0:00:05.1]} 85... Qc5+ {[%clk 0:00:05.4]} 86.
Ke6 {[%clk 0:00:04.5]} 86... Qe3+ {[%clk 0:00:05.3]} 87. Kf6 {[%clk 0:00:04]}
87... Qd4+ {[%clk 0:00:05.2]} 88. Ke7 {[%clk 0:00:04.2]} 88... Qe5+ {[%clk
0:00:05.3]} 89. Kd8 {[%clk 0:00:04.6]} 89... f3 {[%clk 0:00:05.8]} 90. Kc8
{[%clk 0:00:04.9]} 90... Qc5+ {[%clk 0:00:05.7]} 91. Kb7 {[%clk 0:00:04.8]}
91... Qb5+ {[%clk 0:00:05.8]} 92. Kc7 {[%clk 0:00:05.3]} 92... Qc5+ {[%clk
0:00:06.1]} 93. Kb7 {[%clk 0:00:05.6]} 93... Qd6 {[%clk 0:00:05.8]} 94. Kc8
{[%clk 0:00:05.1]} 94... Qc6+ {[%clk 0:00:06.1]} 95. Kd8 {[%clk 0:00:05]} 95...
f2 {[%clk 0:00:06.5]} 96. g6 {[%clk 0:00:05.3]} 96... hxg6 {[%clk 0:00:06.2]}
97. Ke7 {[%clk 0:00:05.4]} 97... Qc5+ {[%clk 0:00:05.8]} 98. Ke6 {[%clk
0:00:05.5]} 98... Qc6+ {[%clk 0:00:05.6]} 99. Ke7 {[%clk 0:00:05.7]} 99... Qxd7+
{[%clk 0:00:05.8]} 100. Kxd7 {[%clk 0:00:06]} 100... Kh7 {[%clk 0:00:06]} 0-1

[Event "Late-Titled-Tuesday-Blitz-September-19-2023"]
[Site "Chess.com"]
[Date "2023.09.19"]
[Round "9"]
[White "jcmesafischer"]
[Black "Grig1508"]
[Result "1-0"]
[WhiteElo "2355"]
[BlackElo "1981"]
[TimeControl "180+1"]
[EndTime "15:40:07 PDT"]
[Termination "jcmesafischer won by resignation"]

1. Nf3 {[%clk 0:03:00.9]} 1... d5 {[%clk 0:02:59.8]} 2. d4 {[%clk 0:02:56.9]}
2... Nf6 {[%clk 0:02:59.6]} 3. c4 {[%clk 0:02:54.6]} 3... e6 {[%clk 0:02:53.3]}
4. Nc3 {[%clk 0:02:54.4]} 4... c5 {[%clk 0:02:47.4]} 5. cxd5 {[%clk 0:02:53.1]}
5... exd5 {[%clk 0:02:47]} 6. g3 {[%clk 0:02:53.6]} 6... Nc6 {[%clk 0:02:42.5]}
7. Bg2 {[%clk 0:02:52.9]} 7... c4 {[%clk 0:02:40.9]} 8. O-O {[%clk 0:02:49.5]}
8... Be7 {[%clk 0:02:37.8]} 9. Ne5 {[%clk 0:02:39.5]} 9... O-O {[%clk
0:02:35.2]} 10. Nxc6 {[%clk 0:02:39.4]} 10... bxc6 {[%clk 0:02:35.1]} 11. e4
{[%clk 0:02:35.3]} 11... Bg4 {[%clk 0:02:30.3]} 12. Qa4 {[%clk 0:02:32.3]} 12...
h5 {[%clk 0:01:54.7]} 13. Qxc6 {[%clk 0:02:26.8]} 13... Rc8 {[%clk 0:01:54.4]}
14. Qa4 {[%clk 0:02:23.4]} 14... h4 {[%clk 0:01:50.5]} 15. exd5 {[%clk
0:02:17.6]} 15... Nxd5 {[%clk 0:01:49.3]} 16. Nxd5 {[%clk 0:02:15.1]} 1-0

[Event "Late-Titled-Tuesday-Blitz-September-19-2023"]
[Site "Chess.com"]
[Date "2023.09.19"]
[Round "9"]
[White "SAInt_666"]
[Black "MathiasWomacka"]
[Result "0-1"]
[WhiteElo "2648"]
[BlackElo "2574"]
[TimeControl "180+1"]
[EndTime "15:40:43 PDT"]
[Termination "MathiasWomacka won by resignation"]

1. Nf3 {[%clk 0:02:58.4]} 1... c5 {[%clk 0:02:59.5]} 2. g3 {[%clk 0:02:58.2]}
2... Nc6 {[%clk 0:02:58.5]} 3. d4 {[%clk 0:02:57.9]} 3... cxd4 {[%clk
0:02:57.6]} 4. Nxd4 {[%clk 0:02:58.8]} 4... g6 {[%clk 0:02:57.7]} 5. Bg2 {[%clk
0:02:58.9]} 5... Bg7 {[%clk 0:02:57.6]} 6. Nxc6 {[%clk 0:02:59.2]} 6... bxc6
{[%clk 0:02:58.2]} 7. O-O {[%clk 0:02:59.8]} 7... Nf6 {[%clk 0:02:57.3]} 8. c4
{[%clk 0:03:00.5]} 8... O-O {[%clk 0:02:57.4]} 9. Qc2 {[%clk 0:03:01.1]} 9... d5
{[%clk 0:02:51.2]} 10. cxd5 {[%clk 0:02:58.8]} 10... cxd5 {[%clk 0:02:50.5]} 11.
Rd1 {[%clk 0:02:57.7]} 11... Bf5 {[%clk 0:02:49.3]} 12. Qa4 {[%clk 0:02:56.3]}
12... Qb6 {[%clk 0:02:42.5]} 13. Nc3 {[%clk 0:02:55.6]} 13... e6 {[%clk
0:02:31.5]} 14. b3 {[%clk 0:01:53.7]} 14... Ng4 {[%clk 0:02:17.3]} 15. Bb2
{[%clk 0:01:36.5]} 15... Nxf2 {[%clk 0:02:07.4]} 16. Kf1 {[%clk 0:01:27]} 16...
Ng4 {[%clk 0:01:53.4]} 0-1

[Event "Late-Titled-Tuesday-Blitz-September-19-2023"]
[Site "Chess.com"]
[Date "2023.09.19"]
[Round "9"]
[White "GiorgianBarbosa"]
[Black "AlexandraBotez"]
[Result "1-0"]
[WhiteElo "2442"]
[BlackElo "2296"]
[TimeControl "180+1"]
[EndTime "15:41:35 PDT"]
[Termination "GiorgianBarbosa won by resignation"]

1. d4 {[%clk 0:03:00.4]} 1... d5 {[%clk 0:02:59.1]} 2. c4 {[%clk 0:03:01.3]}
2... e6 {[%clk 0:02:58.1]} 3. cxd5 {[%clk 0:03:01.5]} 3... exd5 {[%clk
0:02:58.1]} 4. Nc3 {[%clk 0:03:02.4]} 4... Nf6 {[%clk 0:02:56.8]} 5. Bf4 {[%clk
0:03:03.3]} 5... Bd6 {[%clk 0:02:56.2]} 6. e3 {[%clk 0:03:04.2]} 6... Bxf4
{[%clk 0:02:56.2]} 7. exf4 {[%clk 0:03:05.1]} 7... O-O {[%clk 0:02:56.6]} 8. Bd3
{[%clk 0:03:05.6]} 8... Re8+ {[%clk 0:02:55.5]} 9. Nge2 {[%clk 0:03:06.5]} 9...
Ne4 {[%clk 0:02:55.6]} 10. O-O {[%clk 0:03:06.6]} 10... c6 {[%clk 0:02:55]} 11.
Ng3 {[%clk 0:03:06.2]} 11... f5 {[%clk 0:02:39.1]} 12. f3 {[%clk 0:03:02]} 12...
Nxg3 {[%clk 0:02:38.5]} 13. hxg3 {[%clk 0:03:02.9]} 13... Qf6 {[%clk 0:02:36.2]}
14. Bc2 {[%clk 0:03:01.7]} 14... Be6 {[%clk 0:02:32.7]} 15. Qd2 {[%clk
0:03:01.8]} 15... Nd7 {[%clk 0:02:31.7]} 16. Kf2 {[%clk 0:03:02.7]} 16... b6
{[%clk 0:02:26.9]} 17. Rae1 {[%clk 0:03:03.6]} 17... Bf7 {[%clk 0:02:24.1]} 18.
Rh1 {[%clk 0:02:59.5]} 18... Rxe1 {[%clk 0:02:20.8]} 19. Qxe1 {[%clk 0:02:59.2]}
19... Re8 {[%clk 0:02:20.5]} 20. Qd2 {[%clk 0:03:00.1]} 20... Qd6 {[%clk
0:01:24.4]} 21. g4 {[%clk 0:02:57.6]} 21... Be6 {[%clk 0:00:52.4]} 22. gxf5
{[%clk 0:02:57.2]} 22... Bf7 {[%clk 0:00:52.8]} 23. g4 {[%clk 0:02:56.8]} 23...
c5 {[%clk 0:00:47.6]} 24. g5 {[%clk 0:02:53.1]} 24... cxd4 {[%clk 0:00:46.1]}
25. Qxd4 {[%clk 0:02:53.1]} 25... Qc5 {[%clk 0:00:41.9]} 26. Qxc5 {[%clk
0:02:52.7]} 26... Nxc5 {[%clk 0:00:41.9]} 27. g6 {[%clk 0:02:53.6]} 27... hxg6
{[%clk 0:00:40.1]} 28. fxg6 {[%clk 0:02:54.5]} 28... Be6 {[%clk 0:00:39.3]} 29.
f5 {[%clk 0:02:54.6]} 29... d4 {[%clk 0:00:34.6]} 30. fxe6 {[%clk 0:02:52.6]}
30... dxc3 {[%clk 0:00:33.8]} 31. bxc3 {[%clk 0:02:52.8]} 31... Nxe6 {[%clk
0:00:29.8]} 32. Bb3 {[%clk 0:02:51.1]} 32... Kf8 {[%clk 0:00:12.2]} 33. Rh8+
{[%clk 0:02:50]} 33... Ke7 {[%clk 0:00:12.6]} 34. Rxe8+ {[%clk 0:02:50.6]} 34...
Kxe8 {[%clk 0:00:12.6]} 35. Bxe6 {[%clk 0:02:51.5]} 1-0

[Event "Late-Titled-Tuesday-Blitz-September-19-2023"]
[Site "Chess.com"]
[Date "2023.09.19"]
[Round "9"]
[White "Parhamov"]
[Black "temus_galaktionov"]
[Result "1-0"]
[WhiteElo "3026"]
[BlackElo "2850"]
[TimeControl "180+1"]
[EndTime "15:41:36 PDT"]
[Termination "Parhamov won by resignation"]

1. h3 {[%clk 0:03:00]} 1... c6 {[%clk 0:03:00.9]} 2. c4 {[%clk 0:02:58.6]} 2...
g6 {[%clk 0:03:01.2]} 3. d4 {[%clk 0:02:57.4]} 3... Bg7 {[%clk 0:03:02.1]} 4. e4
{[%clk 0:02:58]} 4... d6 {[%clk 0:03:02.7]} 5. Nc3 {[%clk 0:02:56.9]} 5... Nd7
{[%clk 0:03:02.4]} 6. Be3 {[%clk 0:02:57.1]} 6... e5 {[%clk 0:03:03.1]} 7. Nge2
{[%clk 0:02:57.4]} 7... Ngf6 {[%clk 0:03:03.2]} 8. g4 {[%clk 0:02:57.3]} 8...
exd4 {[%clk 0:02:59.7]} 9. Nxd4 {[%clk 0:02:56.2]} 9... Qe7 {[%clk 0:02:56.5]}
10. Bg2 {[%clk 0:02:56]} 10... Nc5 {[%clk 0:02:56.3]} 11. Qc2 {[%clk 0:02:51.1]}
11... a5 {[%clk 0:02:55.6]} 12. Rd1 {[%clk 0:02:45.9]} 12... O-O {[%clk
0:02:55.3]} 13. O-O {[%clk 0:02:45.9]} 13... Re8 {[%clk 0:02:53.1]} 14. Rfe1
{[%clk 0:02:45.9]} 14... h5 {[%clk 0:02:50]} 15. g5 {[%clk 0:02:44.5]} 15...
Nfd7 {[%clk 0:02:50.3]} 16. f4 {[%clk 0:02:44.3]} 16... a4 {[%clk 0:02:36.2]}
17. Nde2 {[%clk 0:02:20.9]} 17... Qe6 {[%clk 0:02:25.5]} 18. b3 {[%clk
0:02:14.4]} 18... axb3 {[%clk 0:02:24.9]} 19. axb3 {[%clk 0:02:15]} 19... Ra3
{[%clk 0:02:24.3]} 20. Rb1 {[%clk 0:01:53.9]} 20... f5 {[%clk 0:02:23.6]} 21.
Nd4 {[%clk 0:01:34.4]} 21... Qf7 {[%clk 0:02:13.4]} 22. Rbd1 {[%clk 0:01:23.5]}
22... fxe4 {[%clk 0:02:04.8]} 23. Nxe4 {[%clk 0:01:23.5]} 23... Nxe4 {[%clk
0:02:05]} 24. Bxe4 {[%clk 0:01:24.3]} 24... Nf8 {[%clk 0:02:04.6]} 25. f5 {[%clk
0:01:17.7]} 25... gxf5 {[%clk 0:01:58.5]} 26. Nxf5 {[%clk 0:01:17.8]} 26... Bxf5
{[%clk 0:01:51.9]} 27. Bxf5 {[%clk 0:01:18.4]} 27... Rxe3 {[%clk 0:01:52]} 28.
Rxe3 {[%clk 0:01:15.8]} 28... Bd4 {[%clk 0:01:52.4]} 29. Rxd4 {[%clk 0:01:14.9]}
1-0

[Event "Late-Titled-Tuesday-Blitz-September-19-2023"]
[Site "Chess.com"]
[Date "2023.09.19"]
[Round "9"]
[White "farzadbfd"]
[Black "GadimbayliA"]
[Result "0-1"]
[WhiteElo "2695"]
[BlackElo "2835"]
[TimeControl "180+1"]
[EndTime "15:41:45 PDT"]
[Termination "GadimbayliA won by resignation"]

1. e4 {[%clk 0:03:00.9]} 1... e5 {[%clk 0:02:59.9]} 2. Nf3 {[%clk 0:03:00.9]}
2... d5 {[%clk 0:02:59.1]} 3. Nc3 {[%clk 0:02:50.2]} 3... Nf6 {[%clk 0:02:56.6]}
4. d4 {[%clk 0:02:43.4]} 4... dxe4 {[%clk 0:02:55.9]} 5. Nxe5 {[%clk 0:02:43.7]}
5... Bd6 {[%clk 0:02:56.6]} 6. Bc4 {[%clk 0:02:40.7]} 6... Bxe5 {[%clk
0:02:53.7]} 7. dxe5 {[%clk 0:02:41.6]} 7... Qxd1+ {[%clk 0:02:54.6]} 8. Nxd1
{[%clk 0:02:28.5]} 8... Ng4 {[%clk 0:02:54.8]} 9. e6 {[%clk 0:02:26.7]} 9...
Bxe6 {[%clk 0:02:54.4]} 10. Bxe6 {[%clk 0:02:26.3]} 10... fxe6 {[%clk
0:02:55.3]} 11. h3 {[%clk 0:02:25.1]} 11... Nf6 {[%clk 0:02:55.2]} 12. O-O
{[%clk 0:02:21.9]} 12... Nc6 {[%clk 0:02:56.1]} 13. b3 {[%clk 0:02:09.1]} 13...
O-O-O {[%clk 0:02:54]} 14. Re1 {[%clk 0:02:07.8]} 14... h6 {[%clk 0:02:42.1]}
15. Bb2 {[%clk 0:01:59.3]} 15... e5 {[%clk 0:02:16.6]} 16. Ne3 {[%clk
0:01:44.1]} 16... Rd2 {[%clk 0:02:14.1]} 17. Bc3 {[%clk 0:01:39.8]} 17... Rd7
{[%clk 0:02:11.2]} 18. Nc4 {[%clk 0:01:37.7]} 18... Re8 {[%clk 0:02:09.9]} 19.
Rad1 {[%clk 0:01:28]} 19... Nd4 {[%clk 0:02:05.1]} 20. Nxe5 {[%clk 0:01:23.8]}
20... Ne2+ {[%clk 0:02:05.1]} 21. Rxe2 {[%clk 0:01:05.2]} 21... Rxd1+ {[%clk
0:02:06]} 22. Kh2 {[%clk 0:01:05.8]} 22... Nd5 {[%clk 0:02:01.6]} 23. Bb2 {[%clk
0:01:03.2]} 23... Rb1 {[%clk 0:02:00.7]} 24. c4 {[%clk 0:01:01.2]} 24... Nf4
{[%clk 0:01:59.9]} 25. Rc2 {[%clk 0:00:53.1]} 25... Rxb2 {[%clk 0:01:59.9]} 26.
Rxb2 {[%clk 0:00:54]} 26... Rxe5 {[%clk 0:02:00.6]} 27. Kg3 {[%clk 0:00:54]}
27... Nd3 {[%clk 0:02:00.5]} 28. Rd2 {[%clk 0:00:54.1]} 28... b6 {[%clk
0:01:56.8]} 0-1